bitfinex/quotes_BTCUSD_20210101
["timestamp","ask_amount","ask_price","bid_price","bid_amount"]
[1609504705247,1.143098,29597.0,29596.0,1.0137]
[1609504705543,0.278098,29597.0,29596.0,1.0137]
[1609504705745,0.093098,29597.0,29596.0,1.0137]
[1609504707475,0.088098,29597.0,29596.0,1.0137]
[1609504713006,0.083098,29597.0,29596.0,1.0137]
[1609504715301,0.25891341,29597.0,29596.0,1.0137]
[1609504715973,4.14392436,29597.0,29596.0,1.0087]
[1609504716170,4.77392436,29597.0,29596.0,1.0087]
[1609504716375,4.73891341,29597.0,29596.0,1.0087]
[1609504716773,4.73891341,29597.0,29596.0,0.9837]
[1609504717271,0.88891341,29597.0,29596.0,0.9837]
[1609504717475,0.25891341,29597.0,29596.0,0.9837]
[1609504717673,0.07357341,29597.0,29596.0,0.9837]
[1609504718973,1.56578341,29597.0,29596.0,0.9837]
[1609504720075,0.26578341,29597.0,29596.0,0.9837]
[1609504720678,0.07357341,29597.0,29596.0,0.9837]
[1609504721407,5.88038098,29597.0,29596.0,0.9737]
[1609504721609,6.58481436,29597.0,29596.0,0.9237]
[1609504721807,6.54980341,29597.0,29596.0,0.9237]
[1609504722004,6.5185482,29597.0,29596.0,0.9237]
[1609504722200,1.2685482,29597.0,29596.0,0.9237]
[1609504722501,0.3685482,29597.0,29596.0,0.9237]
[1609504723007,4.09912577,29597.0,29596.0,0.9187]
[1609504723804,5.09912577,29597.0,29596.0,0.9187]
[1609504724012,6.50222577,29597.0,29596.0,0.9187]
[1609504724207,6.13722577,29597.0,29596.0,0.6712]
[1609504724410,6.16619288,29597.0,29596.0,0.6712]
[1609504724708,5.91759389,29597.0,29596.0,0.6712]
[1609504724903,6.71209389,29597.0,29596.0,0.6712]
[1609504725406,5.91209389,29597.0,29596.0,0.1257]
[1609504725706,7.66209389,29597.0,29596.0,0.1257]
[1609504726308,7.66209389,29597.0,29593.0,0.00126288]
[1609504726309,0.03501095,29595.0,29591.0,0.64065365]
[1609504726528,5.27181395,29592.0,29591.0,0.64065365]
[1609504726826,5.27181395,29592.0,29591.0,1.64945365]
[1609504727227,0.91681395,29592.0,29591.0,1.64945365]
[1609504727425,0.07181395,29592.0,29591.0,1.64945365]
[1609504727627,0.23236962,29592.0,29591.0,1.64945365]
[1609504727826,4.21738057,29592.0,29591.0,1.64945365]
[1609504728226,4.95238057,29592.0,29591.0,1.64945365]
[1609504728625,4.91735822,29592.0,29591.0,1.64945365]
[1609504728825,2.16735822,29592.0,29591.0,1.64945365]
[1609504729127,1.43235822,29592.0,29591.0,1.64945365]
[1609504729532,1.2367916,29592.0,29591.0,1.64945365]
[1609504729830,2.0867916,29592.0,29591.0,1.64945365]
[1609504730427,2.4617916,29592.0,29591.0,1.64945365]
[1609504730626,5.0617916,29592.0,29591.0,1.64445365]
[1609504731302,1.6117916,29592.0,29591.0,1.64445365]
[1609504731604,1.57678065,29592.0,29591.0,1.64445365]
[1609504732315,0.37678065,29592.0,29591.0,1.64445365]
[1609504732514,0.00178065,29592.0,29591.0,1.64445365]
[1609504733321,5.25,29591.0,29583.0,0.14231855]
[1609504733525,3.11970433,29590.0,29583.0,0.0004]
[1609504733725,0.36527114,29589.0,29583.0,1.0145]
[1609504733926,0.36527114,29589.0,29580.0,0.80443338]
[1609504733927,5.64,29588.0,29580.0,0.80443338]
[1609504734222,0.33180302,29587.0,29580.0,0.80443338]
[1609504734417,1.25180302,29587.0,29580.0,1.81863338]
[1609504734618,0.39,29588.0,29580.0,1.0142]
[1609504734822,0.09,29589.0,29580.0,1.81363338]
[1609504735021,0.09,29589.0,29582.0,0.6749]
[1609504735225,1.18426,29591.0,29582.0,0.6749]
[1609504735428,1.03039567,29591.0,29582.0,1.6891]
[1609504735620,1.03039567,29591.0,29583.0,0.79943338]
[1609504735621,0.165,29590.0,29583.0,0.79943338]
[1609504735943,0.165,29590.0,29583.0,1.81363338]
[1609504736141,0.165,29590.0,29583.0,1.0142]
[1609504736342,0.245,29590.0,29583.0,1.0142]
[1609504737252,0.67286662,29590.0,29583.0,1.0142]
[1609504737454,1.05251643,29588.0,29583.0,1.0142]
[1609504737651,0.08,29586.0,29583.0,1.0138]
[1609504737856,5.30251643,29584.0,29583.0,1.0138]
[1609504738152,6.52542662,29584.0,29583.0,1.0138]
[1609504738457,5.25,29576.0,29574.0,0.0004]
[1609504738754,5.33,29574.0,29573.0,7.17036256]
[1609504738954,5.86236964,29574.0,29573.0,7.16396256]
[1609504739143,6.53056662,29574.0,29573.0,8.17196256]
[1609504739355,6.53056662,29574.0,29573.0,8.17016256]
[1609504739554,6.93123515,29574.0,29573.0,8.16476256]
[1609504739750,6.53056662,29574.0,29573.0,8.16476256]
[1609504740651,7.16303817,29574.0,29573.0,7.05454256]
[1609504740847,7.16303817,29574.0,29573.0,6.32574256]
[1609504741051,7.16303817,29574.0,29573.0,6.32414256]
[1609504741344,6.81488607,29574.0,29573.0,3.17254256]
[1609504741576,7.16873672,29574.0,29572.0,0.8782]
[1609504741784,2.3,29571.0,29563.0,0.00080414]
[1609504741975,0.68565367,29569.0,29563.0,0.00080414]
[1609504742181,5.58180302,29567.0,29566.0,1.0147]
[1609504742378,5.81506302,29567.0,29566.0,1.0147]
[1609504742774,6.01562964,29567.0,29566.0,1.0147]
[1609504743276,5.81506302,29567.0,29566.0,1.0097]
[1609504743471,6.81506302,29567.0,29566.0,1.0097]
[1609504744374,6.81506302,29567.0,29566.0,1.0042]
[1609504744571,7.01562964,29567.0,29566.0,1.0042]
[1609504745474,1.43382662,29567.0,29566.0,1.0042]
[1609504745676,1.48382662,29567.0,29566.0,1.0042]
[1609504745943,5.48382662,29567.0,29566.0,0.9992]
[1609504746147,1.28326,29567.0,29566.0,0.9992]
[1609504746350,0.33,29567.0,29566.0,0.9992]
[1609504746656,0.21,29568.0,29566.0,0.9992]
[1609504747050,0.21,29568.0,29566.0,1.1992]
[1609504747268,0.21,29568.0,29566.0,0.9992]
[1609504747666,0.21,29568.0,29566.0,1.1992]
[1609504747865,0.21,29568.0,29566.0,0.9992]
[1609504748268,0.21,29568.0,29567.0,0.01071684]
[1609504748668,0.21,29568.0,29567.0,1.00991684]
[1609504749666,1.1,29573.0,29567.0,1.00991684]
[1609504749869,0.20056662,29572.0,29567.0,1.00991684]
[1609504750065,1.55386662,29573.0,29567.0,1.00991684]
[1609504750273,0.35,29572.0,29567.0,1.00991684]
[1609504751097,0.62405662,29572.0,29567.0,1.00991684]
[1609504751294,0.42349,29572.0,29567.0,1.00991684]
[1609504751994,0.42349,29572.0,29567.0,0.68950634]
[1609504752194,0.62405662,29572.0,29567.0,0.68950634]
[1609504752395,0.20056662,29571.0,29567.0,0.68950634]
[1609504752598,0.17556662,29571.0,29567.0,0.68950634]
[1609504752901,0.35822662,29570.0,29567.0,0.68950634]
[1609504753099,0.17556662,29569.0,29567.0,0.68860634]
[1609504753298,0.15819132,29569.0,29567.0,0.68860634]
[1609504754502,0.16410316,29567.0,29566.0,0.8772]
[1609504754800,0.77910316,29567.0,29566.0,0.8772]
[1609504755193,0.77910316,29567.0,29566.0,1.8919]
[1609504756501,0.16410316,29567.0,29566.0,1.8869]
[1609504756911,0.16410316,29567.0,29566.0,1.0147]
[1609504761275,0.33410316,29567.0,29566.0,1.0147]
[1609504761474,1.98410316,29567.0,29566.0,1.0147]
[1609504761873,2.13229448,29567.0,29566.0,1.0147]
[1609504762180,1.96810316,29567.0,29566.0,1.0147]
[1609504762581,4.66810316,29567.0,29566.0,0.9427]
[1609504762784,4.16810316,29567.0,29566.0,0.9377]
[1609504762984,1.96810316,29567.0,29566.0,0.9377]
[1609504763382,2.91810316,29567.0,29566.0,0.9377]
[1609504763982,3.07629448,29567.0,29566.0,0.9377]
[1609504764480,1.96810316,29567.0,29566.0,0.9377]
[1609504764685,0.31810316,29567.0,29566.0,0.9377]
[1609504765091,0.31810316,29567.0,29566.0,1.77950868]
[1609504765285,0.14810316,29567.0,29566.0,0.9377]
[1609504766026,0.14810316,29567.0,29566.0,1.1377]
[1609504766224,0.14810316,29567.0,29566.0,0.9377]
[1609504766431,0.14810316,29567.0,29566.0,7.29314668]
[1609504766632,0.14810316,29567.0,29566.0,7.8293883]
[1609504766835,0.14810316,29567.0,29566.0,7.9343883]
[1609504767026,0.00614917,29574.0,29569.0,0.84180868]
[1609504767236,0.00614917,29574.0,29573.0,5.813638]
[1609504767431,0.00614917,29574.0,29573.0,6.178638]
[1609504767729,0.00615267,29577.0,29573.0,7.95814668]
[1609504767930,0.000702,29580.0,29573.0,7.95814668]
[1609504767931,0.00685925,29580.0,29576.0,0.563638]
[1609504768134,0.00685925,29580.0,29576.0,0.756358]
[1609504768327,0.00685925,29580.0,29578.0,0.363638]
[1609504768725,0.00585925,29580.0,29578.0,1.301338]
[1609504769123,0.00585925,29580.0,29578.0,1.807538]
[1609504769334,0.12311422,29588.0,29579.0,3.88180302]
[1609504769528,0.12311422,29588.0,29580.0,0.53180302]
[1609504769756,0.28130554,29588.0,29580.0,1.26950302]
[1609504769935,0.15319132,29587.0,29580.0,0.9377]
[1609504770429,0.22871143,29586.0,29580.0,0.9377]
[1609504770727,0.22871143,29586.0,29583.0,0.5062]
[1609504770930,0.19871143,29586.0,29583.0,1.4439]
[1609504771125,0.22780612,29585.0,29583.0,1.4439]
[1609504771533,0.15319132,29585.0,29583.0,1.4439]
[1609504771735,0.15319132,29587.0,29583.0,1.4439]
[1609504771940,0.22780298,29584.0,29583.0,1.4439]
[1609504772348,0.22768448,29586.0,29583.0,1.4439]
[1609504772647,2.10319132,29584.0,29583.0,0.9377]
[1609504772850,2.14695501,29584.0,29583.0,0.9377]
[1609504773242,2.70042313,29584.0,29583.0,0.9377]
[1609504773442,6.04604313,29584.0,29583.0,0.9377]
[1609504773852,6.2737275,29584.0,29583.0,0.9377]
[1609504774358,6.9490275,29584.0,29583.0,0.9377]
[1609504774952,7.4690275,29584.0,29583.0,0.9377]
[1609504775453,6.9490275,29584.0,29583.0,0.9377]
[1609504775851,6.91555938,29584.0,29583.0,0.9377]
[1609504776122,7.01806107,29584.0,29583.0,0.9377]
[1609504776521,7.05152919,29584.0,29583.0,0.9377]
[1609504776720,7.57152919,29584.0,29583.0,0.9277]
[1609504777121,7.53806107,29584.0,29583.0,0.9277]
[1609504777528,7.01806107,29584.0,29583.0,0.9277]
[1609504777827,7.46371179,29584.0,29583.0,0.9277]
[1609504778225,6.91555938,29584.0,29583.0,0.9277]
[1609504778632,3.46236806,29584.0,29583.0,0.9277]
[1609504778827,0.63768437,29584.0,29583.0,0.89246613]
[1609504779033,0.22768437,29584.0,29583.0,0.89246613]
[1609504779228,1.22768437,29584.0,29583.0,0.89246613]
[1609504779534,1.49204225,29584.0,29583.0,0.89246613]
[1609504779734,1.74704225,29584.0,29583.0,0.89246613]
[1609504780336,2.39704225,29584.0,29583.0,0.89246613]
[1609504780927,1.74704225,29584.0,29583.0,0.89246613]
[1609504781355,0.74704225,29584.0,29583.0,0.89246613]
[1609504781554,0.49204225,29584.0,29583.0,0.89246613]
[1609504782359,0.49204225,29584.0,29583.0,1.39876613]
[1609504784156,2.59204225,29584.0,29583.0,1.39876613]
[1609504784357,3.13023357,29584.0,29583.0,0.89246613]
[1609504784767,2.97704225,29584.0,29583.0,0.89246613]
[1609504785166,1.62704225,29584.0,29583.0,0.89246613]
[1609504785365,1.82399726,29584.0,29583.0,0.89246613]
[1609504785870,2.50351726,29584.0,29583.0,0.89246613]
[1609504786059,2.53698538,29584.0,29583.0,0.89246613]
[1609504786265,6.33698538,29584.0,29583.0,0.89246613]
[1609504786783,5.78351726,29584.0,29583.0,0.89246613]
[1609504786981,1.08032594,29584.0,29583.0,0.89246613]
[1609504787185,3.29204225,29584.0,29583.0,0.42246613]
[1609504787689,0.49204225,29584.0,29583.0,0.42246613]
[1609504788284,1.24204225,29584.0,29583.0,0.42246613]
[1609504788478,1.42704225,29584.0,29583.0,0.42246613]
[1609504789284,3.37704225,29584.0,29583.0,0.42246613]
[1609504789490,3.42518231,29584.0,29583.0,0.42246613]
[1609504789784,3.42518231,29584.0,29583.0,0.41246613]
[1609504790281,1.42704225,29584.0,29583.0,0.41246613]
[1609504791962,0.67704225,29584.0,29583.0,0.41246613]
[1609504792156,1.24204225,29584.0,29583.0,0.41246613]
[1609504792364,0.49204225,29584.0,29583.0,0.41246613]
[1609504794076,1.64204225,29584.0,29583.0,0.41246613]
[1609504794272,1.88704225,29584.0,29583.0,0.41246613]
[1609504794876,2.08837363,29584.0,29583.0,0.41246613]
[1609504795081,4.96277363,29584.0,29583.0,0.41246613]
[1609504795273,4.99624175,29584.0,29583.0,0.41246613]
[1609504795679,5.22407694,29584.0,29583.0,0.41246613]
[1609504796203,5.19060882,29584.0,29583.0,0.41246613]
[1609504796609,5.73986515,29584.0,29583.0,0.41246613]
[1609504796810,2.88667383,29584.0,29583.0,0.41246613]
[1609504797013,2.71227383,29584.0,29583.0,0.41246613]
[1609504797615,2.1630175,29584.0,29583.0,0.43746613]
[1609504799002,2.9630175,29584.0,29583.0,0.43746613]
[1609504799304,2.1630175,29584.0,29583.0,0.43746613]
[1609504800009,2.1630175,29584.0,29574.0,0.84680868]
[1609504800010,3.04814006,29583.0,29574.0,0.84680868]
[1609504800206,3.38814006,29583.0,29574.0,0.84680868]
[1609504800512,3.38814006,29583.0,29574.0,1.86120868]
[1609504800708,3.38814006,29583.0,29575.0,0.84680868]
[1609504800907,0.825,29582.0,29575.0,1.86120868]
[1609504801113,0.004111,29577.0,29576.0,0.84680868]
[1609504801410,0.004111,29577.0,29576.0,1.86120868]
[1609504801831,0.004111,29577.0,29576.0,1.0144]
[1609504802129,0.004111,29577.0,29576.0,1.86120868]
[1609504803029,0.004111,29577.0,29576.0,1.0144]
[1609504803926,0.004111,29577.0,29576.0,1.86120868]
[1609504804131,0.004111,29577.0,29576.0,1.0144]
[1609504804635,0.25320001,29578.0,29576.0,1.86120868]
[1609504804830,0.25320001,29578.0,29576.0,1.11464648]
[1609504805536,0.25320001,29578.0,29576.0,1.86120868]
[1609504805732,0.08223487,29581.0,29577.0,2.44179668]
[1609504805930,0.08223487,29581.0,29578.0,1.21180868]
[1609504806207,0.08223487,29581.0,29579.0,1.21044668]
[1609504806397,0.08223487,29581.0,29580.0,5.04680868]
[1609504806607,0.08223487,29581.0,29580.0,6.42484668]
[1609504806797,0.08223487,29581.0,29580.0,6.78984668]
[1609504807312,0.22893153,29583.0,29580.0,6.78984668]
[1609504807500,0.22893153,29583.0,29582.0,4.213638]
[1609504807708,0.49204225,29584.0,29582.0,5.1922497]
[1609504807902,0.49204225,29584.0,29583.0,3.54044668]
[1609504808109,0.49204225,29584.0,29583.0,4.55484668]
[1609504808298,0.49204225,29584.0,29583.0,2.22484668]
[1609504808510,0.72118121,29584.0,29583.0,2.22484668]
[1609504808902,0.72118121,29584.0,29583.0,1.378038]
[1609504810101,0.72011141,29584.0,29583.0,1.378038]
[1609504811230,0.49097245,29584.0,29583.0,1.378038]
[1609504811430,0.49097245,29584.0,29583.0,1.377838]
[1609504812135,0.53911251,29584.0,29583.0,1.0142]
[1609504812337,0.53411251,29584.0,29583.0,1.0142]
[1609504813141,0.74865772,29584.0,29583.0,1.0142]
[1609504813335,0.95365772,29584.0,29583.0,1.0142]
[1609504813543,0.9201896,29584.0,29583.0,1.0142]
[1609504814340,0.48597245,29584.0,29583.0,1.377838]
[1609504815338,0.48597245,29584.0,29583.0,1.0142]
[1609504816236,0.48597245,29584.0,29583.0,0.5142]
[1609504816438,0.48097245,29584.0,29583.0,0.5142]
[1609504816957,0.71061099,29584.0,29583.0,0.5142]
[1609504818754,0.48097245,29584.0,29583.0,0.5142]
[1609504819658,0.71058988,29584.0,29583.0,0.5142]
[1609504820756,0.74158988,29584.0,29583.0,0.5142]
[1609504821130,0.74158988,29584.0,29583.0,1.72464668]
[1609504821344,0.74158988,29584.0,29583.0,0.877838]
[1609504822129,0.51197245,29584.0,29583.0,0.877838]
[1609504823129,0.74157759,29584.0,29583.0,0.877838]
[1609504823529,0.51197245,29584.0,29583.0,0.877838]
[1609504823935,0.51197245,29584.0,29583.0,0.5142]
[1609504824835,0.74156968,29584.0,29583.0,0.5142]
[1609504827833,1.74156968,29584.0,29583.0,0.5142]
[1609504828047,1.01156968,29584.0,29583.0,0.52491117]
[1609504828945,1.0937715,29584.0,29583.0,0.52491117]
[1609504830045,1.3331755,29584.0,29583.0,0.52491117]
[1609504832247,1.4031974,29584.0,29583.0,0.52491117]
[1609504832552,1.55638872,29584.0,29583.0,0.52491117]
[1609504833053,0.5969869,29584.0,29583.0,0.52491117]
[1609504833451,0.67920567,29584.0,29583.0,0.52491117]
[1609504833672,4.70984567,29584.0,29583.0,0.52491117]
[1609504833872,5.22984567,29584.0,29583.0,0.52491117]
[1609504834077,5.84325471,29584.0,29583.0,0.52491117]
[1609504834373,6.46490321,29584.0,29583.0,0.52491117]
[1609504834567,5.94490321,29584.0,29583.0,0.52491117]
[1609504835675,5.91143509,29584.0,29583.0,0.52491117]
[1609504835873,5.90643509,29584.0,29583.0,0.52491117]
[1609504836171,6.20643509,29584.0,29583.0,0.52491117]
[1609504836568,6.32966286,29584.0,29583.0,0.52491117]
[1609504836968,5.45246286,29584.0,29583.0,0.52491117]
[1609504838577,5.48747381,29584.0,29583.0,0.52491117]
[1609504839078,6.00747381,29584.0,29583.0,0.52491117]
[1609504839280,5.36424604,29584.0,29583.0,0.52491117]
[1609504839481,1.64945914,29584.0,29583.0,0.52491117]
[1609504839781,1.65445914,29584.0,29583.0,0.52491117]
[1609504839980,1.11565095,29584.0,29583.0,0.52491117]
[1609504840583,2.51565095,29584.0,29583.0,0.52491117]
[1609504840782,3.08565095,29584.0,29583.0,0.52491117]
[1609504841215,2.46165096,29584.0,29583.0,0.51991117]
[1609504841405,1.06165096,29584.0,29583.0,0.51991117]
[1609504841612,4.25,29584.0,29583.0,0.51491117]
[1609504842117,0.5063,29585.0,29583.0,0.51491117]
[1609504842316,2.08208783,29584.0,29583.0,0.51491117]
[1609504842512,0.08208783,29584.0,29583.0,0.51491117]
[1609504843610,1.83208783,29584.0,29583.0,0.50991117]
[1609504843813,1.76750548,29584.0,29583.0,0.50991117]
[1609504844010,2.04250548,29584.0,29583.0,0.50991117]
[1609504844416,0.275,29584.0,29583.0,0.50991117]
[1609504844620,0.08208903,29585.0,29583.0,1.60991117]
[1609504844825,0.12312137,29587.0,29584.0,3.763638]
[1609504845022,0.12312137,29587.0,29586.0,5.08180302]
[1609504845322,0.12312137,29587.0,29586.0,7.12464102]
[1609504845615,0.12312137,29587.0,29586.0,2.37464102]
[1609504845817,0.09148428,29589.0,29587.0,0.363638]
[1609504846120,0.09148428,29589.0,29588.0,0.245]
[1609504846310,0.09148428,29589.0,29588.0,0.6992]
[1609504846621,0.00940936,29589.0,29588.0,0.3892]
[1609504846836,2.41940936,29589.0,29588.0,0.3842]
[1609504847236,0.55149536,29589.0,29588.0,0.3842]
[1609504847634,0.46940936,29589.0,29588.0,0.3842]
[1609504847833,0.45940936,29589.0,29588.0,0.3842]
[1609504848339,0.68150988,29589.0,29588.0,0.3842]
[1609504851191,0.22210052,29589.0,29588.0,0.3842]
[1609504851393,0.98915231,29589.0,29588.0,0.3842]
[1609504852392,0.98415231,29589.0,29588.0,0.3842]
[1609504854104,0.76705179,29589.0,29588.0,0.3842]
[1609504854304,0.91205179,29589.0,29588.0,0.3842]
[1609504854906,0.90705179,29589.0,29588.0,0.3842]
[1609504855309,0.90705179,29589.0,29588.0,1.3842]
[1609504855507,0.90705179,29589.0,29588.0,0.3842]
[1609504855810,1.46205179,29589.0,29588.0,0.3842]
[1609504856007,1.46205179,29589.0,29588.0,1.8903]
[1609504856246,0.90705179,29589.0,29588.0,0.8903]
[1609504856938,0.9480847,29589.0,29588.0,0.8903]
[1609504858444,0.90705179,29589.0,29588.0,1.8903]
[1609504858649,0.76205179,29589.0,29588.0,1.8903]
[1609504859149,0.76615455,29589.0,29588.0,1.0903]
[1609504859345,1.16705179,29589.0,29588.0,1.8903]
[1609504859549,1.16705179,29589.0,29588.0,0.8903]
[1609504860047,1.17580453,29589.0,29588.0,0.3842]
[1609504860240,1.16705179,29589.0,29588.0,0.3842]
[1609504860444,1.17115277,29589.0,29588.0,0.3842]
[1609504862060,1.16705179,29589.0,29588.0,0.3842]
[1609504862362,0.76205179,29589.0,29588.0,0.3842]
[1609504863168,0.76205179,29589.0,29588.0,0.8903]
[1609504863361,0.76205179,29589.0,29588.0,2.46464742]
[1609504864271,0.76205179,29589.0,29588.0,3.64366742]
[1609504864472,0.76205179,29589.0,29588.0,3.18366742]
[1609504865167,0.76205179,29589.0,29588.0,2.18366742]
[1609504865369,0.76205179,29589.0,29588.0,1.39366742]
[1609504865570,0.76205179,29589.0,29588.0,2.26464742]
[1609504865768,0.76205179,29589.0,29588.0,2.46464742]
[1609504866361,0.76205179,29589.0,29588.0,1.46464742]
[1609504866557,0.76205179,29589.0,29588.0,1.75964742]
[1609504866758,0.76205179,29589.0,29588.0,1.55964742]
[1609504867262,0.76205179,29589.0,29588.0,2.46464742]
[1609504867868,0.76205179,29589.0,29588.0,1.26464742]
[1609504868677,0.77080453,29589.0,29588.0,1.26464742]
[1609504868891,0.77080453,29589.0,29588.0,0.39490942]
[1609504868892,1.77080453,29589.0,29588.0,0.39490942]
[1609504869090,2.30800265,29589.0,29588.0,0.39490942]
[1609504869387,3.95800265,29589.0,29588.0,0.39490942]
[1609504869784,3.96210519,29589.0,29588.0,0.39490942]
[1609504869982,4.32210519,29589.0,29588.0,0.39490942]
[1609504870186,4.82840519,29589.0,29588.0,0.39490942]
[1609504870382,8.94840519,29589.0,29588.0,0.39490942]
[1609504870782,8.94430265,29589.0,29588.0,0.39490942]
[1609504871180,7.17349812,29589.0,29588.0,0.39490942]
[1609504871396,8.17349812,29589.0,29588.0,0.39490942]
[1609504871598,4.57349812,29589.0,29588.0,0.39490942]
[1609504871804,5.33180592,29589.0,29588.0,0.39490942]
[1609504872198,5.33618229,29589.0,29588.0,0.39490942]
[1609504872994,5.37141095,29589.0,29588.0,0.39490942]
[1609504873395,4.85141095,29589.0,29588.0,0.39490942]
[1609504873598,4.78271417,29589.0,29588.0,0.39490942]
[1609504874102,5.30271417,29589.0,29588.0,0.39490942]
[1609504874699,5.33618229,29589.0,29588.0,0.39490942]
[1609504875003,5.30271417,29589.0,29588.0,0.39490942]
[1609504875201,4.78271417,29589.0,29588.0,0.39490942]
[1609504875401,5.30271417,29589.0,29588.0,0.39490942]
[1609504875913,2.62641417,29589.0,29588.0,0.39490942]
[1609504876706,2.08978022,29589.0,29588.0,0.39490942]
[1609504876915,1.72978022,29589.0,29588.0,0.39490942]
[1609504877116,3.42978022,29589.0,29588.0,0.39490942]
[1609504877719,2.26660727,29589.0,29588.0,0.39490942]
[1609504878116,3.26660727,29589.0,29588.0,0.39490942]
[1609504878324,2.95478022,29589.0,29588.0,0.39490942]
[1609504878918,3.07796139,29589.0,29588.0,0.39490942]
[1609504879328,3.07358502,29589.0,29588.0,0.39490942]
[1609504879822,2.07358502,29589.0,29588.0,0.39490942]
[1609504881123,3.02358502,29589.0,29588.0,0.39490942]
[1609504881401,2.90040385,29589.0,29588.0,0.39490942]
[1609504882193,2.07355604,29589.0,29588.0,0.39490942]
[1609504882500,2.50387197,29589.0,29588.0,0.39490942]
[1609504882902,2.62700712,29589.0,29588.0,0.39490942]
[1609504883093,5.52700712,29589.0,29588.0,0.39490942]
[1609504883501,6.28660714,29589.0,29588.0,0.39490942]
[1609504883897,6.8229039,29589.0,29588.0,0.39490942]
[1609504884100,6.8966239,29589.0,29588.0,0.39490942]
[1609504884501,6.86315578,29589.0,29588.0,0.39490942]
[1609504884702,6.60995577,29589.0,29588.0,0.39490942]
[1609504884999,6.74002063,29589.0,29588.0,0.39490942]
[1609504885198,6.85715238,29589.0,29588.0,0.39490942]
[1609504885599,7.60797159,29589.0,29588.0,0.39490942]
[1609504886428,7.64143971,29589.0,29588.0,0.39490942]
[1609504887033,7.60797159,29589.0,29588.0,0.39490942]
[1609504887430,7.67843215,29589.0,29588.0,0.39490942]
[1609504887730,7.55534651,29589.0,29588.0,0.39490942]
[1609504888433,7.67838482,29589.0,29588.0,0.39490942]
[1609504888635,7.55534651,29589.0,29588.0,0.39490942]
[1609504889234,7.67838639,29589.0,29588.0,0.39490942]
[1609504889539,7.71361671,29589.0,29588.0,0.39490942]
[1609504889737,7.74708483,29589.0,29588.0,0.39490942]
[1609504889932,7.71361671,29589.0,29588.0,0.39490942]
[1609504890231,7.74708483,29589.0,29588.0,0.39490942]
[1609504890436,7.71361671,29589.0,29588.0,0.39490942]
[1609504890840,1.35,29588.0,29587.0,0.8772]
[1609504891140,2.87,29588.0,29587.0,0.8772]
[1609504891337,2.90346812,29588.0,29587.0,0.8772]
[1609504891536,2.90346812,29588.0,29587.0,1.8912]
[1609504891835,3.66115046,29588.0,29587.0,1.8912]
[1609504892056,6.47768234,29588.0,29587.0,1.8912]
[1609504892453,6.51115046,29588.0,29587.0,1.8912]
[1609504892955,6.47768234,29588.0,29587.0,1.8912]
[1609504894257,3.60268234,29588.0,29587.0,1.8912]
[1609504895056,4.85268234,29588.0,29587.0,1.8912]
[1609504895961,3.72574242,29588.0,29587.0,1.8912]
[1609504896159,3.82771314,29588.0,29587.0,1.8912]
[1609504896365,0.2533,29580.0,29565.0,0.8439]
[1609504896577,3.1,29566.0,29565.0,0.25130945]
[1609504896779,2.65,29565.0,29557.0,0.0014]
[1609504896977,1.86203225,29564.0,29560.0,1.0149]
[1609504897174,0.2534,29563.0,29560.0,1.0149]
[1609504897371,0.3481521,29562.0,29560.0,1.0149]
[1609504897572,4.925,29561.0,29560.0,1.0149]
[1609504897776,5.2731521,29561.0,29560.0,1.0149]
[1609504898083,5.07400605,29561.0,29560.0,1.0149]
[1609504898283,5.54881903,29561.0,29560.0,1.0149]
[1609504898483,5.93590439,29561.0,29560.0,1.0149]
[1609504898878,5.90106413,29561.0,29560.0,1.0149]
[1609504899278,3.75,29560.0,29559.0,0.8766]
[1609504899482,5.96696812,29560.0,29559.0,0.1121066]
[1609504899688,0.5069,29559.0,29557.0,0.0012]
[1609504899984,4.14812035,29558.0,29557.0,0.7872]
[1609504900183,4.60408848,29558.0,29557.0,0.81426201]
[1609504900479,2.32190403,29558.0,29555.0,0.00040201]
[1609504900688,2.97,29556.0,29553.0,0.0012]
[1609504900900,1.72805,29554.0,29547.0,0.87679799]
[1609504901088,1.52,29548.0,29547.0,0.87679799]
[1609504901292,1.97750993,29548.0,29547.0,1.89209799]
[1609504901706,2.33208726,29548.0,29547.0,1.89209799]
[1609504902010,4.78208726,29548.0,29547.0,1.72709799]
[1609504902304,5.13023936,29548.0,29547.0,1.0153]
[1609504902498,4.78208726,29548.0,29547.0,1.0153]
[1609504902704,2.33208726,29548.0,29547.0,1.0153]
[1609504902901,3.58208726,29548.0,29547.0,1.0153]
[1609504903208,5.13023936,29548.0,29547.0,0.39711798]
[1609504903405,4.01179231,29548.0,29547.0,0.39711798]
[1609504903802,2.41364021,29548.0,29547.0,0.39711798]
[1609504904103,1.89364021,29548.0,29547.0,0.29711798]
[1609504904304,2.68023936,29548.0,29547.0,0.29711798]
[1609504904707,1.04132005,29548.0,29547.0,1.29711798]
[1609504904919,0.61161726,29548.0,29547.0,4.38093208]
[1609504905112,0.35661726,29548.0,29547.0,4.74457008]
[1609504905413,0.00611241,29548.0,29547.0,4.74457008]
[1609504905609,0.00611241,29548.0,29547.0,1.65575598]
[1609504905815,0.00203736,29550.0,29547.0,2.68957008]
[1609504906006,0.00203736,29550.0,29548.0,1.363638]
[1609504906210,0.00203736,29550.0,29548.0,0.29211798]
[1609504906424,0.00203736,29550.0,29549.0,0.0838141]
[1609504906716,0.18203736,29550.0,29549.0,0.29211798]
[1609504907032,0.18203736,29550.0,29549.0,0.30284179]
[1609504907033,1.68203736,29550.0,29549.0,0.30284179]
[1609504907234,2.63407432,29550.0,29549.0,0.25284179]
[1609504907531,1.68407432,29550.0,29549.0,0.25284179]
[1609504907729,1.68407432,29550.0,29549.0,0.15284179]
[1609504908034,2.62645376,29550.0,29549.0,0.15284179]
[1609504908340,1.12645376,29550.0,29549.0,0.15284179]
[1609504908537,0.79445376,29550.0,29549.0,0.15284179]
[1609504908932,3.14445376,29550.0,29549.0,0.14924179]
[1609504909132,1.79445376,29550.0,29549.0,0.14924179]
[1609504909535,1.79445376,29550.0,29540.0,1.14208]
[1609504909536,4.45343376,29550.0,29540.0,1.14208]
[1609504909837,0.265,29549.0,29541.0,2.0155]
[1609504910338,0.17771675,29543.0,29541.0,2.0155]
[1609504910534,0.17771675,29543.0,29541.0,1.0155]
[1609504910734,0.0020364,29542.0,29541.0,1.0155]
[1609504911136,0.00407218,29542.0,29541.0,1.0155]
[1609504911358,0.00407218,29542.0,29541.0,0.9655]
[1609504911557,0.01017894,29542.0,29541.0,0.9655]
[1609504912777,0.00610676,29542.0,29541.0,1.9655]
[1609504912972,0.00610676,29542.0,29541.0,0.9655]
[1609504913180,0.00610676,29542.0,29541.0,1.8427]
[1609504913579,1.94071991,29542.0,29541.0,1.22449399]